[Event "*** Titled Tuesday Blitz"]
[Site "Chess.com"]
[Date "2021.02.02"]
[Round "6"]
[White "Meri-Arabidze"]
[Black "Pliukha_Mikhail"]
[Result "1/2-1/2"]
[WhiteElo "2605"]
[BlackElo "2477"]
[TimeControl "180+1"]
[EndTime "11:10:40 PST"]
[Termination "Game drawn by repetition"]

1. d4 {[%clk 0:03:00.9]} 1... Nf6 {[%clk 0:02:59.7]} 2. c4 {[%clk 0:03:01.2]}
2... e6 {[%clk 0:03:00]} 3. Nf3 {[%clk 0:03:01.8]} 3... b6 {[%clk 0:02:58.4]} 4.
Nc3 {[%clk 0:03:02.1]} 4... Bb4 {[%clk 0:02:58.1]} 5. e3 {[%clk 0:03:02.5]} 5...
Bb7 {[%clk 0:02:58.3]} 6. Bd3 {[%clk 0:03:02.7]} 6... Ne4 {[%clk 0:02:59]} 7.
Qc2 {[%clk 0:03:02.4]} 7... f5 {[%clk 0:02:59.2]} 8. O-O {[%clk 0:03:02.6]} 8...
Nxc3 {[%clk 0:02:59.9]} 9. bxc3 {[%clk 0:03:02.3]} 9... Bxf3 {[%clk 0:03:00.5]}
10. gxf3 {[%clk 0:03:01]} 10... Bd6 {[%clk 0:03:01]} 11. f4 {[%clk 0:02:56]}
11... Qh4 {[%clk 0:03:00.7]} 12. f3 {[%clk 0:02:45.8]} 12... g5 {[%clk
0:03:00.9]} 13. Kh1 {[%clk 0:02:39.1]} 13... gxf4 {[%clk 0:02:59.3]} 14. e4
{[%clk 0:02:39.4]} 14... fxe4 {[%clk 0:02:51.2]} 15. Bxe4 {[%clk 0:02:38.9]}
15... Nc6 {[%clk 0:02:51.8]} 16. Rg1 {[%clk 0:02:21.7]} 16... O-O-O {[%clk
0:02:48.9]} 17. c5 {[%clk 0:02:13.8]} 17... Rhg8 {[%clk 0:02:36.4]} 18. Ba3
{[%clk 0:02:07.2]} 18... Be7 {[%clk 0:02:23.9]} 19. Qa4 {[%clk 0:01:56.2]} 19...
Kb7 {[%clk 0:02:00.7]} 20. cxb6 {[%clk 0:01:50.7]} 20... cxb6 {[%clk 0:01:58.7]}
21. d5 {[%clk 0:01:17.4]} 21... exd5 {[%clk 0:01:55.9]} 22. Bxd5 {[%clk
0:01:18.2]} 22... Rxg1+ {[%clk 0:01:53.6]} 23. Rxg1 {[%clk 0:01:19.1]} 23...
Bxa3 {[%clk 0:01:52.7]} 24. Qxa3 {[%clk 0:01:20]} 24... Qf6 {[%clk 0:01:36.6]}
25. c4 {[%clk 0:01:16.5]} 25... Re8 {[%clk 0:01:31.4]} 26. Qd3 {[%clk
0:01:12.7]} 26... Re7 {[%clk 0:01:24.4]} 27. Be4 {[%clk 0:01:07.2]} 27... Rg7
{[%clk 0:01:14.4]} 28. Rxg7 {[%clk 0:00:51.6]} 28... Qxg7 {[%clk 0:01:15.1]} 29.
Bxh7 {[%clk 0:00:48.5]} 29... Kc7 {[%clk 0:01:02.8]} 30. Bf5 {[%clk 0:00:38.2]}
30... Qa1+ {[%clk 0:00:57]} 31. Kg2 {[%clk 0:00:34.9]} 31... Nd4 {[%clk
0:00:56.3]} 32. Qe4 {[%clk 0:00:28.9]} 32... Qxa2+ {[%clk 0:00:44.7]} 33. Kh3
{[%clk 0:00:29.1]} 33... Nxf5 {[%clk 0:00:45.2]} 34. Qxf5 {[%clk 0:00:26.7]}
34... Qxc4 {[%clk 0:00:45.4]} 35. Kg4 {[%clk 0:00:24.6]} 35... a5 {[%clk
0:00:44.6]} 36. h4 {[%clk 0:00:24.3]} 36... a4 {[%clk 0:00:44.9]} 37. h5 {[%clk
0:00:24.6]} 37... a3 {[%clk 0:00:44.1]} 38. h6 {[%clk 0:00:24]} 38... Qg8+
{[%clk 0:00:41.1]} 39. Kxf4 {[%clk 0:00:21.4]} 39... a2 {[%clk 0:00:41.6]} 40.
Qe5+ {[%clk 0:00:20.1]} 40... Kc8 {[%clk 0:00:25.3]} 41. Qg7 {[%clk 0:00:17.6]}
41... Qxg7 {[%clk 0:00:19.4]} 42. hxg7 {[%clk 0:00:17.6]} 42... a1=Q {[%clk
0:00:20.3]} 43. g8=Q+ {[%clk 0:00:18.2]} 43... Kc7 {[%clk 0:00:21]} 44. Qc4+
{[%clk 0:00:17.6]} 44... Kd6 {[%clk 0:00:20.3]} 45. Qd3+ {[%clk 0:00:16.3]}
45... Kc6 {[%clk 0:00:17.3]} 46. Qc4+ {[%clk 0:00:16.4]} 46... Kb7 {[%clk
0:00:16]} 47. Qd5+ {[%clk 0:00:16.5]} 47... Kc7 {[%clk 0:00:15.2]} 48. Qc4+
{[%clk 0:00:16.4]} 48... Kd6 {[%clk 0:00:13.4]} 49. Qd3+ {[%clk 0:00:16.3]}
49... Ke7 {[%clk 0:00:12]} 50. Qe3+ {[%clk 0:00:15.1]} 50... Kf7 {[%clk
0:00:08.7]} 51. Qxb6 {[%clk 0:00:15.6]} 51... Qc1+ {[%clk 0:00:06]} 52. Kg4
{[%clk 0:00:15.7]} 52... Qc4+ {[%clk 0:00:05.1]} 53. f4 {[%clk 0:00:14.7]} 53...
Qe2+ {[%clk 0:00:05.7]} 54. Kg3 {[%clk 0:00:14.4]} 54... Qe1+ {[%clk 0:00:05.6]}
55. Kg4 {[%clk 0:00:14.4]} 55... Qe2+ {[%clk 0:00:06.1]} 56. Kg5 {[%clk
0:00:11.9]} 56... Qg2+ {[%clk 0:00:05.4]} 57. Kf5 {[%clk 0:00:11.3]} 57... Qd5+
{[%clk 0:00:05.8]} 58. Kg4 {[%clk 0:00:11.4]} 58... Qg2+ {[%clk 0:00:06.6]} 59.
Kf5 {[%clk 0:00:11.7]} 59... Qh3+ {[%clk 0:00:07.1]} 60. Ke4 {[%clk 0:00:10.6]}
60... Qh7+ {[%clk 0:00:06.1]} 61. f5 {[%clk 0:00:09.2]} 61... Qh4+ {[%clk
0:00:06.2]} 62. Ke5 {[%clk 0:00:09.3]} 62... Qg3+ {[%clk 0:00:06.4]} 63. Ke4
{[%clk 0:00:09.1]} 63... Qg2+ {[%clk 0:00:06.3]} 64. Ke5 {[%clk 0:00:09.2]}
64... Qe2+ {[%clk 0:00:06.5]} 65. Kf4 {[%clk 0:00:08.8]} 65... Qd2+ {[%clk
0:00:07]} 66. Ke5 {[%clk 0:00:07.9]} 66... Qc3+ {[%clk 0:00:06.5]} 67. Kf4
{[%clk 0:00:08.1]} 67... Qd2+ {[%clk 0:00:06.3]} 68. Ke5 {[%clk 0:00:07.5]}
68... Qe2+ {[%clk 0:00:06.3]} 69. Kf4 {[%clk 0:00:07.4]} 69... Qf1+ {[%clk
0:00:07]} 70. Ke5 {[%clk 0:00:07.3]} 70... Qe1+ {[%clk 0:00:07.7]} 71. Kf4
{[%clk 0:00:07.3]} 71... Qc1+ {[%clk 0:00:08.3]} 72. Ke5 {[%clk 0:00:07.2]}
72... Qc3+ {[%clk 0:00:08.9]} 73. Kf4 {[%clk 0:00:07.3]} 73... Qc4+ {[%clk
0:00:09.4]} 74. Ke5 {[%clk 0:00:07.5]} 74... Qc3+ {[%clk 0:00:09.7]} 1/2-1/2

[Event "*** Titled Tuesday Blitz"]
[Site "Chess.com"]
[Date "2021.02.02"]
[Round "6"]
[White "glebus008"]
[Black "ApacheSVD"]
[Result "0-1"]
[WhiteElo "2266"]
[BlackElo "2425"]
[TimeControl "180+1"]
[EndTime "11:10:48 PST"]
[Termination "ApacheSVD won by checkmate"]

1. e4 {[%clk 0:03:00.9]} 1... c5 {[%clk 0:02:25.8]} 2. Nf3 {[%clk 0:02:59.6]}
2... d6 {[%clk 0:02:26]} 3. d4 {[%clk 0:02:59.2]} 3... cxd4 {[%clk 0:02:26.9]}
4. Qxd4 {[%clk 0:03:00]} 4... a6 {[%clk 0:02:26.8]} 5. Bc4 {[%clk 0:02:59.8]}
5... Nc6 {[%clk 0:02:26.6]} 6. Qd3 {[%clk 0:02:59.8]} 6... e6 {[%clk 0:02:26.5]}
7. Nc3 {[%clk 0:02:59.6]} 7... Nf6 {[%clk 0:02:24]} 8. Bg5 {[%clk 0:02:57.1]}
8... Be7 {[%clk 0:02:23.6]} 9. O-O-O {[%clk 0:02:55.8]} 9... b5 {[%clk
0:02:21.2]} 10. Bb3 {[%clk 0:02:44.6]} 10... Bb7 {[%clk 0:02:21.1]} 11. Rhe1
{[%clk 0:02:35.4]} 11... h6 {[%clk 0:02:19]} 12. Bxf6 {[%clk 0:02:32.5]} 12...
gxf6 {[%clk 0:02:19.9]} 13. Nd4 {[%clk 0:02:10]} 13... Nxd4 {[%clk 0:02:02.1]}
14. Qxd4 {[%clk 0:02:09.5]} 14... Qc7 {[%clk 0:01:59.8]} 15. f4 {[%clk
0:01:59.6]} 15... Qc5 {[%clk 0:01:53.8]} 16. f5 {[%clk 0:01:54]} 16... Qxd4
{[%clk 0:01:44.1]} 17. Rxd4 {[%clk 0:01:54.9]} 17... Bc8 {[%clk 0:01:34.9]} 18.
Ne2 {[%clk 0:01:42.3]} 18... Bd7 {[%clk 0:01:30.1]} 19. Rd2 {[%clk 0:01:29.9]}
19... O-O-O {[%clk 0:01:21.2]} 20. Nf4 {[%clk 0:01:25.8]} 20... exf5 {[%clk
0:01:02.9]} 21. exf5 {[%clk 0:01:24.9]} 21... Bf8 {[%clk 0:01:02]} 22. Bxf7
{[%clk 0:01:03.7]} 22... Bxf5 {[%clk 0:01:01.5]} 23. Be6+ {[%clk 0:01:03.4]}
23... Bxe6 {[%clk 0:00:56.4]} 24. Nxe6 {[%clk 0:01:04.3]} 24... Re8 {[%clk
0:00:54.2]} 25. Rde2 {[%clk 0:01:00.8]} 25... h5 {[%clk 0:00:29.5]} 26. Nxf8
{[%clk 0:00:56.1]} 26... Rexf8 {[%clk 0:00:26.9]} 27. Re7 {[%clk 0:00:52.7]}
27... Rhg8 {[%clk 0:00:23.6]} 28. g3 {[%clk 0:00:42.8]} 28... Rd8 {[%clk
0:00:23.6]} 29. Rh7 {[%clk 0:00:40]} 29... Rge8 {[%clk 0:00:14.6]} 30. Rf1
{[%clk 0:00:28.8]} 30... Re2 {[%clk 0:00:13.4]} 31. Rxh5 {[%clk 0:00:26.9]}
31... Rde8 {[%clk 0:00:12.6]} 32. b3 {[%clk 0:00:22.1]} 32... Rg2 {[%clk
0:00:10.9]} 33. Kb1 {[%clk 0:00:13.7]} 33... Ree2 {[%clk 0:00:09.8]} 34. Rc1
{[%clk 0:00:13.9]} 34... Rxh2 {[%clk 0:00:09.7]} 35. Rf5 {[%clk 0:00:13.2]}
35... Rhf2 {[%clk 0:00:08.5]} 36. Rxf2 {[%clk 0:00:12.2]} 36... Rxf2 {[%clk
0:00:09.4]} 37. Rh1 {[%clk 0:00:11.1]} 37... Rf3 {[%clk 0:00:07.3]} 38. Rh7
{[%clk 0:00:07.8]} 38... Rxg3 {[%clk 0:00:06.4]} 39. Ra7 {[%clk 0:00:07.7]}
39... f5 {[%clk 0:00:02.7]} 40. Rxa6 {[%clk 0:00:07.6]} 40... Kc7 {[%clk
0:00:03.3]} 41. Ra8 {[%clk 0:00:06.4]} 41... f4 {[%clk 0:00:02.6]} 42. Rf8
{[%clk 0:00:06.5]} 42... Rf3 {[%clk 0:00:03]} 43. Kc1 {[%clk 0:00:06.5]} 43...
Rf1+ {[%clk 0:00:03.4]} 44. Kd2 {[%clk 0:00:06.5]} 44... f3 {[%clk 0:00:03.7]}
45. Ke3 {[%clk 0:00:05.5]} 45... Ra1 {[%clk 0:00:03.6]} 46. Rxf3 {[%clk
0:00:04.9]} 46... Rxa2 {[%clk 0:00:03.8]} 47. Kd3 {[%clk 0:00:05.8]} 47... Kc6
{[%clk 0:00:03.9]} 48. Kc3 {[%clk 0:00:05.5]} 48... Ra1 {[%clk 0:00:04.1]} 49.
Rf4 {[%clk 0:00:05.2]} 49... Rh1 {[%clk 0:00:04.3]} 50. Rg4 {[%clk 0:00:05.1]}
50... Rh3+ {[%clk 0:00:04.4]} 51. Kb2 {[%clk 0:00:04.1]} 51... Kc5 {[%clk
0:00:04.7]} 52. Rg2 {[%clk 0:00:04.5]} 52... d5 {[%clk 0:00:04.8]} 53. Rd2
{[%clk 0:00:04.8]} 53... Rf3 {[%clk 0:00:04.9]} 54. Kb1 {[%clk 0:00:04.8]} 54...
Rf1+ {[%clk 0:00:04.9]} 55. Kb2 {[%clk 0:00:05]} 55... Rf8 {[%clk 0:00:05.8]}
56. Re2 {[%clk 0:00:05]} 56... b4 {[%clk 0:00:06.2]} 57. Rd2 {[%clk 0:00:04.9]}
57... Rd8 {[%clk 0:00:06.5]} 58. Re2 {[%clk 0:00:04.8]} 58... Kd4 {[%clk
0:00:06.6]} 59. Rd2+ {[%clk 0:00:04.8]} 59... Ke3 {[%clk 0:00:07]} 60. Rd3+
{[%clk 0:00:05.7]} 60... Ke4 {[%clk 0:00:07.2]} 61. Rh3 {[%clk 0:00:05.5]} 61...
d4 {[%clk 0:00:07.1]} 62. Rh4+ {[%clk 0:00:05.8]} 62... Ke3 {[%clk 0:00:07.2]}
63. Rh3+ {[%clk 0:00:06.5]} 63... Kd2 {[%clk 0:00:07.4]} 64. Rh2+ {[%clk
0:00:06.5]} 64... Ke1 {[%clk 0:00:07.8]} 65. Rh1+ {[%clk 0:00:06.1]} 65... Kf2
{[%clk 0:00:08]} 66. Rh2+ {[%clk 0:00:06.6]} 66... Kg3 {[%clk 0:00:08]} 67. Rd2
{[%clk 0:00:06.9]} 67... Kf3 {[%clk 0:00:07.2]} 68. Rd3+ {[%clk 0:00:07.8]}
68... Ke4 {[%clk 0:00:07.1]} 69. Rh3 {[%clk 0:00:07.9]} 69... d3 {[%clk
0:00:06.9]} 70. cxd3+ {[%clk 0:00:07]} 70... Rxd3 {[%clk 0:00:06.4]} 71. Rh4+
{[%clk 0:00:07.1]} 71... Kd5 {[%clk 0:00:06.7]} 72. Rxb4 {[%clk 0:00:08]} 72...
Rd2+ {[%clk 0:00:07.2]} 73. Ka3 {[%clk 0:00:07.3]} 73... Kc5 {[%clk 0:00:06.7]}
74. Rc4+ {[%clk 0:00:07.5]} 74... Kb5 {[%clk 0:00:06.7]} 75. Rh4 {[%clk
0:00:07.6]} 75... Rd5 {[%clk 0:00:06.3]} 76. Rg4 {[%clk 0:00:07.2]} 76... Rf5
{[%clk 0:00:06.1]} 77. Re4 {[%clk 0:00:07]} 77... Rg5 {[%clk 0:00:04.7]} 78.
Rb4+ {[%clk 0:00:07]} 78... Ka6 {[%clk 0:00:04.5]} 79. Ka4 {[%clk 0:00:06.1]}
79... Ra5# {[%clk 0:00:03.7]} 0-1

[Event "*** Titled Tuesday Blitz"]
[Site "Chess.com"]
[Date "2021.02.02"]
[Round "6"]
[White "johnathan113"]
[Black "frederiksvane"]
[Result "1/2-1/2"]
[WhiteElo "2589"]
[BlackElo "2762"]
[TimeControl "180+1"]
[EndTime "11:11:42 PST"]
[Termination "Game drawn by repetition"]

1. e4 {[%clk 0:02:52.9]} 1... c5 {[%clk 0:02:58.4]} 2. Nf3 {[%clk 0:02:52.8]}
2... g6 {[%clk 0:02:57]} 3. d4 {[%clk 0:02:52.7]} 3... cxd4 {[%clk 0:02:57.9]}
4. Nxd4 {[%clk 0:02:53.6]} 4... Bg7 {[%clk 0:02:57.7]} 5. Nc3 {[%clk 0:02:54.2]}
5... Nc6 {[%clk 0:02:58]} 6. Be3 {[%clk 0:02:54.6]} 6... Nf6 {[%clk 0:02:57.7]}
7. Bc4 {[%clk 0:02:54.2]} 7... O-O {[%clk 0:02:56]} 8. Bb3 {[%clk 0:02:54.5]}
8... Re8 {[%clk 0:02:52]} 9. O-O {[%clk 0:02:49.6]} 9... d6 {[%clk 0:02:46.1]}
10. f3 {[%clk 0:02:46.3]} 10... Na5 {[%clk 0:02:43.5]} 11. Qe2 {[%clk
0:02:40.5]} 11... a6 {[%clk 0:02:40.3]} 12. Qf2 {[%clk 0:02:35.8]} 12... b5
{[%clk 0:02:15.4]} 13. Rfd1 {[%clk 0:02:28.2]} 13... Qc7 {[%clk 0:02:02.2]} 14.
Nd5 {[%clk 0:02:12.7]} 14... Nxd5 {[%clk 0:02:01.9]} 15. Bxd5 {[%clk 0:02:13.1]}
15... Bb7 {[%clk 0:01:59.9]} 16. Ne6 {[%clk 0:01:48.8]} 16... Qc8 {[%clk
0:01:15.4]} 17. Nxg7 {[%clk 0:01:47]} 17... Kxg7 {[%clk 0:01:16.3]} 18. Bd4+
{[%clk 0:01:35.6]} 18... f6 {[%clk 0:01:08.8]} 19. b3 {[%clk 0:01:32.2]} 19...
Bxd5 {[%clk 0:01:00.4]} 20. exd5 {[%clk 0:01:31.7]} 20... Qf5 {[%clk 0:01:00.9]}
21. Rd2 {[%clk 0:00:58]} 21... Rac8 {[%clk 0:00:57.7]} 22. Re1 {[%clk
0:00:54.8]} 22... Nb7 {[%clk 0:00:53.1]} 23. Rde2 {[%clk 0:00:48.9]} 23... Kf7
{[%clk 0:00:49]} 24. Qh4 {[%clk 0:00:33.7]} 24... Qh5 {[%clk 0:00:39.6]} 25. Qe4
{[%clk 0:00:26.2]} 25... Nc5 {[%clk 0:00:31.7]} 26. Bxc5 {[%clk 0:00:25.2]}
26... Rxc5 {[%clk 0:00:31.8]} 27. Qe6+ {[%clk 0:00:26.1]} 27... Kf8 {[%clk
0:00:25.7]} 28. Qd7 {[%clk 0:00:20.4]} 28... Qf5 {[%clk 0:00:23.7]} 29. Qa7
{[%clk 0:00:06.7]} 29... Rxc2 {[%clk 0:00:10]} 30. Rxe7 {[%clk 0:00:06]} 30...
Rxe7 {[%clk 0:00:10.9]} 31. Qxe7+ {[%clk 0:00:05.6]} 31... Kg8 {[%clk
0:00:11.4]} 32. Qxd6 {[%clk 0:00:04]} 32... Kg7 {[%clk 0:00:08]} 33. Qe7+ {[%clk
0:00:03]} 33... Kh6 {[%clk 0:00:08.2]} 34. Qe3+ {[%clk 0:00:03.5]} 34... g5
{[%clk 0:00:07.4]} 35. Qe4 {[%clk 0:00:03.9]} 35... Kg6 {[%clk 0:00:03.7]} 36.
d6 {[%clk 0:00:03.4]} 36... Qxe4 {[%clk 0:00:02]} 37. fxe4 {[%clk 0:00:01.8]}
37... Rd2 {[%clk 0:00:02.4]} 38. e5 {[%clk 0:00:01.8]} 38... fxe5 {[%clk
0:00:03.3]} 39. Rxe5 {[%clk 0:00:02.5]} 39... Rxd6 {[%clk 0:00:03.9]} 40. Re2
{[%clk 0:00:03.4]} 40... Kf5 {[%clk 0:00:03.8]} 41. g3 {[%clk 0:00:04.3]} 41...
Rc6 {[%clk 0:00:02.6]} 42. Rf2+ {[%clk 0:00:04.7]} 42... Ke4 {[%clk 0:00:02.9]}
43. Kg2 {[%clk 0:00:05.6]} 43... Kd3 {[%clk 0:00:03.4]} 44. Kh3 {[%clk
0:00:05.8]} 44... h5 {[%clk 0:00:03.5]} 45. Rf5 {[%clk 0:00:06]} 45... Rg6
{[%clk 0:00:02.8]} 46. g4 {[%clk 0:00:06.4]} 46... hxg4+ {[%clk 0:00:02.2]} 47.
Kxg4 {[%clk 0:00:06.1]} 47... Rh6 {[%clk 0:00:03.1]} 48. h3 {[%clk 0:00:05.8]}
48... Rh4+ {[%clk 0:00:03.4]} 49. Kg3 {[%clk 0:00:06.4]} 49... Rh5 {[%clk
0:00:03.8]} 50. Rc5 {[%clk 0:00:06.9]} 50... Kd4 {[%clk 0:00:03]} 51. Rc6 {[%clk
0:00:07.2]} 51... a5 {[%clk 0:00:03.5]} 52. Kg4 {[%clk 0:00:07.3]} 52... Rh4+
{[%clk 0:00:03.7]} 53. Kg3 {[%clk 0:00:07.9]} 53... Re4 {[%clk 0:00:04.3]} 54.
Ra6 {[%clk 0:00:03.9]} 54... a4 {[%clk 0:00:02.5]} 55. bxa4 {[%clk 0:00:04.3]}
55... b4 {[%clk 0:00:03]} 56. a5 {[%clk 0:00:04.4]} 56... Kc3 {[%clk 0:00:03.3]}
57. Ra8 {[%clk 0:00:04.2]} 57... Kb2 {[%clk 0:00:03.3]} 58. Kf3 {[%clk
0:00:03.5]} 58... Re7 {[%clk 0:00:03]} 59. Rb8 {[%clk 0:00:03.1]} 59... Ka3
{[%clk 0:00:02.5]} 60. a6 {[%clk 0:00:03.1]} 60... Ra7 {[%clk 0:00:02.8]} 61.
Rb6 {[%clk 0:00:03.6]} 61... Kxa2 {[%clk 0:00:03.3]} 62. Rxb4 {[%clk 0:00:03.8]}
62... Rxa6 {[%clk 0:00:03.9]} 63. Kg4 {[%clk 0:00:03.8]} 63... Ra5 {[%clk
0:00:04.2]} 64. Rb8 {[%clk 0:00:02.3]} 64... Ka3 {[%clk 0:00:03.7]} 65. Rf8
{[%clk 0:00:02.9]} 65... Kb3 {[%clk 0:00:03.6]} 66. Rf5 {[%clk 0:00:03.8]} 66...
Ra8 {[%clk 0:00:02.1]} 67. Kxg5 {[%clk 0:00:04.2]} 67... Kc4 {[%clk 0:00:02.8]}
68. h4 {[%clk 0:00:05.1]} 68... Kd4 {[%clk 0:00:03.3]} 69. h5 {[%clk 0:00:05.3]}
69... Ke4 {[%clk 0:00:03.9]} 70. Rf1 {[%clk 0:00:05.4]} 70... Rg8+ {[%clk
0:00:04.4]} 71. Kh6 {[%clk 0:00:05.7]} 71... Rg2 {[%clk 0:00:03.4]} 72. Kh7
{[%clk 0:00:05.5]} 72... Ke5 {[%clk 0:00:03.9]} 73. h6 {[%clk 0:00:05.5]} 73...
Ke6 {[%clk 0:00:04.4]} 74. Kh8 {[%clk 0:00:05.5]} 74... Ke7 {[%clk 0:00:04.7]}
75. h7 {[%clk 0:00:02.5]} 75... Rg3 {[%clk 0:00:04.4]} 76. Re1+ {[%clk
0:00:02.1]} 76... Kf7 {[%clk 0:00:04.8]} 77. Rf1+ {[%clk 0:00:02.7]} 77... Ke7
{[%clk 0:00:05]} 78. Rf4 {[%clk 0:00:03.3]} 78... Rg2 {[%clk 0:00:04.7]} 79.
Re4+ {[%clk 0:00:03.4]} 79... Kf7 {[%clk 0:00:04.7]} 80. Ra4 {[%clk 0:00:04.3]}
80... Rf2 {[%clk 0:00:04.7]} 81. Ra8 {[%clk 0:00:04.5]} 81... Rf1 {[%clk
0:00:04.4]} 82. Rg8 {[%clk 0:00:04.5]} 82... Rf2 {[%clk 0:00:04.6]} 83. Rg7+
{[%clk 0:00:04.8]} 83... Kf8 {[%clk 0:00:05.1]} 84. Rg8+ {[%clk 0:00:05.7]}
84... Kf7 {[%clk 0:00:05.6]} 85. Rg4 {[%clk 0:00:05.9]} 85... Rf1 {[%clk
0:00:05.7]} 86. Rg7+ {[%clk 0:00:06.1]} 86... Kf8 {[%clk 0:00:05.7]} 87. Rb7
{[%clk 0:00:07]} 87... Rf2 {[%clk 0:00:05.7]} 88. Rb5 {[%clk 0:00:07.5]} 88...
Rf1 {[%clk 0:00:05.9]} 89. Rb2 {[%clk 0:00:08]} 89... Rf3 {[%clk 0:00:06]} 90.
Rb4 {[%clk 0:00:07.9]} 90... Rf2 {[%clk 0:00:06.2]} 91. Rb8+ {[%clk 0:00:08.3]}
91... Kf7 {[%clk 0:00:06.5]} 92. Rc8 {[%clk 0:00:09.2]} 92... Rf1 {[%clk
0:00:06.7]} 93. Rd8 {[%clk 0:00:09.6]} 93... Rf2 {[%clk 0:00:06.8]} 94. Rc8
{[%clk 0:00:09.4]} 94... Rf1 {[%clk 0:00:07.1]} 95. Rc2 {[%clk 0:00:09.9]} 95...
Kf8 {[%clk 0:00:06.8]} 96. Rc3 {[%clk 0:00:10]} 96... Kf7 {[%clk 0:00:07.2]} 97.
Rd3 {[%clk 0:00:10.5]} 97... Kf8 {[%clk 0:00:07.3]} 98. Rg3 {[%clk 0:00:11]}
98... Kf7 {[%clk 0:00:07.6]} 99. Rg2 {[%clk 0:00:11.4]} 99... Kf8 {[%clk
0:00:07.8]} 100. Rh2 {[%clk 0:00:11.9]} 100... Kf7 {[%clk 0:00:08]} 101. Rg2
{[%clk 0:00:12.3]} 101... Kf8 {[%clk 0:00:08]} 102. Rg8+ {[%clk 0:00:13.2]}
102... Kf7 {[%clk 0:00:08.3]} 103. Rc8 {[%clk 0:00:13.6]} 103... Rf2 {[%clk
0:00:08.6]} 104. Rc1 {[%clk 0:00:14.2]} 104... Kf8 {[%clk 0:00:08.3]} 105. Rc8+
{[%clk 0:00:14.7]} 105... Kf7 {[%clk 0:00:08.7]} 106. Ra8 {[%clk 0:00:15.4]}
106... Rf1 {[%clk 0:00:08.7]} 107. Ra7+ {[%clk 0:00:15.4]} 107... Kf8 {[%clk
0:00:09.2]} 108. Ra8+ {[%clk 0:00:15.6]} 108... Kf7 {[%clk 0:00:09.6]} 1/2-1/2

[Event "*** Titled Tuesday Blitz"]
[Site "Chess.com"]
[Date "2021.02.02"]
[Round "7"]
[White "Enriquack"]
[Black "Sharpchess22"]
[Result "0-1"]
[WhiteElo "2443"]
[BlackElo "2684"]
[TimeControl "180+1"]
[EndTime "11:13:42 PST"]
[Termination "Sharpchess22 won by resignation"]

1. e4 {[%clk 0:03:00.9]} 1... e5 {[%clk 0:02:58.9]} 2. f4 {[%clk 0:03:01.1]}
2... exf4 {[%clk 0:02:57.5]} 3. Nf3 {[%clk 0:03:01.4]} 3... Ne7 {[%clk
0:02:55.8]} 4. d4 {[%clk 0:02:59.3]} 4... d5 {[%clk 0:02:55.6]} 5. Nc3 {[%clk
0:02:58.9]} 5... dxe4 {[%clk 0:02:54.1]} 6. Nxe4 {[%clk 0:02:58.8]} 6... Ng6
{[%clk 0:02:54]} 7. h4 {[%clk 0:02:38.8]} 7... Be7 {[%clk 0:02:46.3]} 8. h5
{[%clk 0:02:33.1]} 8... Nh4 {[%clk 0:02:46.3]} 9. Bxf4 {[%clk 0:02:19.9]} 9...
Bf5 {[%clk 0:02:39.1]} 10. Ng3 {[%clk 0:02:12.1]} 10... Bg4 {[%clk 0:02:37]} 11.
Be2 {[%clk 0:02:12.1]} 11... Nxg2+ {[%clk 0:02:36.6]} 0-1

[Event "*** Titled Tuesday Blitz"]
[Site "Chess.com"]
[Date "2021.02.02"]
[Round "7"]
[White "MoreChessJulia"]
[Black "sbouchet"]
[Result "0-1"]
[WhiteElo "2159"]
[BlackElo "2338"]
[TimeControl "180+1"]
[EndTime "11:14:16 PST"]
[Termination "sbouchet won by resignation"]

1. d4 {[%clk 0:03:00.9]} 1... Nf6 {[%clk 0:02:59.3]} 2. Bg5 {[%clk 0:03:00.3]}
2... Ne4 {[%clk 0:02:54.7]} 3. Bh4 {[%clk 0:02:59.6]} 3... d5 {[%clk 0:02:49.5]}
4. f3 {[%clk 0:02:58.6]} 4... Nd6 {[%clk 0:02:48.4]} 5. Nd2 {[%clk 0:02:53.9]}
5... Nf5 {[%clk 0:02:40.4]} 6. Bf2 {[%clk 0:02:49.6]} 6... c5 {[%clk 0:02:40.2]}
7. e3 {[%clk 0:02:47.9]} 7... cxd4 {[%clk 0:02:39.5]} 8. exd4 {[%clk 0:02:47.6]}
8... Nc6 {[%clk 0:02:40]} 9. c3 {[%clk 0:02:45.4]} 9... g6 {[%clk 0:02:39.4]}
10. Bd3 {[%clk 0:02:45]} 10... Bg7 {[%clk 0:02:39.7]} 11. Ne2 {[%clk 0:02:44.8]}
11... O-O {[%clk 0:02:38.9]} 12. O-O {[%clk 0:02:44.5]} 12... Nd6 {[%clk
0:02:33.2]} 13. g4 {[%clk 0:02:43.4]} 13... e5 {[%clk 0:02:31.1]} 14. Nb3 {[%clk
0:02:31.7]} 14... e4 {[%clk 0:02:28.6]} 15. fxe4 {[%clk 0:02:31.1]} 15... dxe4
{[%clk 0:02:28.3]} 16. Bc2 {[%clk 0:02:27.7]} 16... Bxg4 {[%clk 0:02:28.1]} 17.
Be3 {[%clk 0:02:27.5]} 17... Bf3 {[%clk 0:02:21.5]} 18. Qc1 {[%clk 0:02:23]}
18... Bxe2 {[%clk 0:02:13.4]} 0-1

[Event "*** Titled Tuesday Blitz"]
[Site "Chess.com"]
[Date "2021.02.02"]
[Round "7"]
[White "HrvojeZagreb"]
[Black "Alex_Molchanov"]
[Result "1-0"]
[WhiteElo "2229"]
[BlackElo "2434"]
[TimeControl "180+1"]
[EndTime "11:15:04 PST"]
[Termination "HrvojeZagreb won by resignation"]

1. d4 {[%clk 0:03:00.9]} 1... d5 {[%clk 0:02:57.8]} 2. Bf4 {[%clk 0:03:00.4]}
2... c5 {[%clk 0:02:56.9]} 3. e3 {[%clk 0:03:00]} 3... Nc6 {[%clk 0:02:56.1]} 4.
Nc3 {[%clk 0:03:00.3]} 4... cxd4 {[%clk 0:02:53.7]} 5. exd4 {[%clk 0:03:01.2]}
5... Nf6 {[%clk 0:02:53.5]} 6. Nb5 {[%clk 0:03:00]} 6... e5 {[%clk 0:02:44.2]}
7. dxe5 {[%clk 0:03:00.9]} 7... Ne4 {[%clk 0:02:37.2]} 8. Qxd5 {[%clk
0:03:00.9]} 8... Qxd5 {[%clk 0:02:34.1]} 9. Nc7+ {[%clk 0:03:00.6]} 9... Kd8
{[%clk 0:02:34.5]} 10. Nxd5 {[%clk 0:03:01.5]} 10... Be6 {[%clk 0:02:27.2]} 11.
Rd1 {[%clk 0:02:39.7]} 11... Kc8 {[%clk 0:02:24]} 12. f3 {[%clk 0:02:33.5]}
12... Nc5 {[%clk 0:02:13.3]} 13. Ne2 {[%clk 0:02:14]} 13... h6 {[%clk 0:01:58]}
14. Nec3 {[%clk 0:02:00]} 14... Nb4 {[%clk 0:01:51.3]} 15. Nxb4 {[%clk 0:01:57]}
1-0

[Event "*** Titled Tuesday Blitz"]
[Site "Chess.com"]
[Date "2021.02.02"]
[Round "7"]
[White "woodhy"]
[Black "glebus008"]
[Result "1-0"]
[WhiteElo "2459"]
[BlackElo "2262"]
[TimeControl "180+1"]
[EndTime "11:15:17 PST"]
[Termination "woodhy won by resignation"]

1. e4 {[%clk 0:03:00.9]} 1... d5 {[%clk 0:02:58.5]} 2. exd5 {[%clk 0:03:00.4]}
2... Nf6 {[%clk 0:02:59]} 3. Nc3 {[%clk 0:03:01.3]} 3... Nxd5 {[%clk 0:02:57.5]}
4. Nf3 {[%clk 0:03:02.2]} 4... c6 {[%clk 0:02:57.4]} 5. Bc4 {[%clk 0:03:02]}
5... Be6 {[%clk 0:02:56.8]} 6. Ne4 {[%clk 0:02:50.9]} 6... Nc3 {[%clk
0:02:48.2]} 7. bxc3 {[%clk 0:02:33.1]} 7... Bxc4 {[%clk 0:02:47.2]} 8. d3 {[%clk
0:02:34]} 8... Bd5 {[%clk 0:02:44.3]} 9. Qe2 {[%clk 0:02:34.3]} 9... e6 {[%clk
0:02:43.8]} 10. O-O {[%clk 0:02:31.7]} 10... Be7 {[%clk 0:02:42.9]} 11. Rb1
{[%clk 0:02:31.4]} 11... b6 {[%clk 0:02:40.1]} 12. c4 {[%clk 0:02:31.7]} 12...
Bxe4 {[%clk 0:02:39.6]} 13. Qxe4 {[%clk 0:02:32.6]} 13... O-O {[%clk 0:02:30.1]}
14. a4 {[%clk 0:02:30.7]} 14... Qc7 {[%clk 0:02:25.5]} 15. Bf4 {[%clk
0:02:28.6]} 15... Bd6 {[%clk 0:02:25.3]} 16. Ng5 {[%clk 0:02:23.9]} 16... g6
{[%clk 0:02:16.2]} 17. Bxd6 {[%clk 0:02:22.6]} 17... Qxd6 {[%clk 0:02:17.1]} 18.
Qh4 {[%clk 0:02:23.3]} 18... h5 {[%clk 0:02:15]} 19. Ne4 {[%clk 0:02:23]} 19...
Qd8 {[%clk 0:02:06.8]} 20. Qf4 {[%clk 0:02:12.3]} 1-0